fUSD/lending_fUSD_20250806
["ID","MTS","AMOUNT","RATE_DAILY","PERIOD"]
[377606968,1754452265596,-950.15,0.0003589,14]
[377606969,1754452265605,-448.79,0.0003589,14]
[377606970,1754452265615,-753.9,0.0003589,14]
[377606971,1754452265624,-1273.49,0.0003589,14]
[377606972,1754452265634,-151.0,0.0003589,7]
[377606973,1754452265643,-666.86,0.0003589,14]
[377606974,1754452265653,-400.0,0.0003589,14]
[377606975,1754452265662,-1715.39,0.0003589,14]
[377606976,1754452265672,-409.05,0.0003589,14]
[377606977,1754452265682,-400.0,0.0003589,14]
[377606978,1754452265692,-949.85,0.0003589,14]
[377606979,1754452265702,-400.0,0.0003589,14]
[377606980,1754452265712,-400.0,0.0003589,14]
[377606981,1754452265722,-400.0,0.0003589,14]
[377606982,1754452265732,-678.32,0.0003589,14]
[377606983,1754452265742,-1029.69,0.0003589,14]
[377606984,1754452265752,-239.15346841,0.0003589,14]
[377606985,1754452265763,-400.0,0.0003589,14]
[377606986,1754452265773,-400.0,0.0003589,14]
[377606987,1754452265783,-400.0,0.0003589,14]
[377606988,1754452265793,-400.0,0.0003589,14]
[377606989,1754452265803,-400.0,0.0003589,14]
[377606990,1754452265812,-1035.42,0.0003589,14]
[377606991,1754452265822,-256.14893833,0.0003589,14]
[377606992,1754452265831,-400.0,0.0003589,14]
[377606993,1754452265841,-832.56,0.0003589,14]
[377606994,1754452265851,-680.65,0.0003589,14]
[377606995,1754452265860,-400.0,0.0003589,14]
[377606996,1754452265870,-400.0,0.0003589,14]
[377606997,1754452265879,-400.0,0.0003589,7]
[377606998,1754452265890,-400.0,0.0003589,14]
[377606999,1754452265900,-400.0,0.0003589,14]
[377607000,1754452265911,-1746.1,0.0003589,14]
[377607001,1754452265923,-400.0,0.0003589,14]
[377607002,1754452265936,-400.0,0.0003589,14]
[377607003,1754452265945,-400.0,0.0003589,14]
[377607004,1754452265955,-899.14,0.0003589,14]
[377607005,1754452265967,-400.0,0.0003589,14]
[377607006,1754452265978,-1176.71,0.0003589,14]
[377607007,1754452265988,-401.24990566,0.0003589,14]
[377607008,1754452265998,-185.54036748,0.0003589,14]
[377607009,1754452266011,-400.0,0.0003589,14]
[377607010,1754452266021,-400.0,0.0003589,14]
[377607011,1754452266031,-1058.29,0.0003589,14]
[377607012,1754452266041,-400.0,0.0003589,14]
[377607013,1754452266051,-400.0,0.0003589,14]
[377607014,1754452266060,-400.0,0.0003589,14]
[377607015,1754452266070,-400.0,0.0003589,14]
[377607016,1754452266080,-400.0,0.0003589,14]
[377607017,1754452266090,-963.24,0.0003589,14]
[377607018,1754452266100,-400.79597528,0.0003589,14]
[377607019,1754452266110,-688.01,0.0003589,14]
[377607020,1754452266119,-1156.12,0.0003589,14]
[377607021,1754452266129,-653.56,0.0003589,14]
[377607022,1754452266138,-400.0,0.0003589,14]
[377607023,1754452266148,-1851.4,0.0003589,14]
[377607024,1754452266157,-400.0,0.0003589,14]
[377607025,1754452266167,-162.38900075,0.0003589,14]
[377607026,1754452266177,-400.0,0.0003589,14]
[377607027,1754452266186,-400.0,0.0003589,14]
[377607028,1754452266196,-708.38,0.0003589,14]
[377607029,1754452266206,-802.76,0.0003589,14]
[377607030,1754452266216,-536.66,0.0003589,14]
[377607031,1754452266226,-985.05,0.0003589,14]
[377607032,1754452266236,-1176.13,0.0003589,14]
[377607033,1754452266246,-400.0,0.0003589,14]
[377607034,1754452266256,-400.0,0.0003589,14]
[377607035,1754452266266,-435.26916505,0.0003589,14]
[377607036,1754452266276,-977.94,0.0003589,14]
[377607037,1754452266286,-1299.96,0.0003589,14]
[377607038,1754452266297,-400.0,0.0003589,14]
[377607039,1754452266308,-426.0,0.0003589,14]
[377607040,1754452266319,-400.0,0.0003589,14]
[377607041,1754452266329,-400.0,0.0003589,14]
[377607042,1754452266338,-438.39,0.0003589,14]
[377607043,1754452266348,-400.0,0.0003589,14]
[377607044,1754452266357,-1531.9,0.0003589,14]
[377607045,1754452266367,-402.63,0.0003589,14]
[377607046,1754452266377,-400.0,0.0003589,14]
[377607047,1754452266387,-442.8,0.0003589,14]
[377607048,1754452266397,-400.0,0.0003589,14]
[377607049,1754452266407,-792.51,0.0003589,14]
[377607050,1754452266417,-521.52833637,0.0003589,14]
[377607051,1754452266428,-709.36,0.0003589,14]
[377607052,1754452266438,-1491.21,0.0003589,14]
[377607053,1754452266448,-400.0,0.0003589,14]
[377607054,1754452266459,-400.0,0.0003589,14]
[377607055,1754452266470,-400.0,0.0003589,14]
[377607056,1754452266482,-400.0,0.0003589,14]
[377607057,1754452266492,-717.15,0.0003589,14]
[377607058,1754452266502,-400.0,0.0003589,14]
[377607059,1754452266514,-593.18,0.0003589,14]
[377607060,1754452266523,-701.88,0.0003589,14]
[377607061,1754452266533,-862.46,0.0003589,14]
[377607062,1754452266543,-400.0,0.0003589,14]
[377607063,1754452266552,-506.23,0.0003589,14]
[377607064,1754452266563,-433.69,0.0003589,14]
[377607065,1754452266574,-167.5597,0.0003589,14]
[377607066,1754452266584,-400.0,0.0003589,14]
[377607067,1754452266594,-400.0,0.0003589,14]
[377607068,1754452266603,-517.01,0.0003589,14]
[377607069,1754452266613,-400.0,0.0003589,14]
[377607070,1754452266624,-473.71,0.0003589,14]
[377607071,1754452266634,-400.0,0.0003589,14]
[377607072,1754452266646,-848.62,0.0003589,14]
[377607073,1754452266657,-400.0,0.0003589,14]
[377607074,1754452266667,-1674.24,0.0003589,14]
[377607075,1754452266676,-1707.95,0.0003589,14]
[377607076,1754452266686,-3134.44,0.0003589,14]
[377607077,1754452266696,-400.0,0.0003589,14]
[377607078,1754452266705,-463.69649481,0.0003589,14]
[377607079,1754452266716,-1055.3,0.0003589,14]
[377607080,1754452266726,-1998.96,0.0003589,14]
[377607081,1754452266736,-400.0,0.0003589,14]
[377607082,1754452266746,-570.13,0.0003589,14]
[377607083,1754452266756,-1066.51,0.0003589,14]
[377607084,1754452266768,-400.0,0.0003589,14]
[377607085,1754452266778,-400.0,0.0003589,14]
[377607086,1754452266788,-464.22452484,0.0003589,2]
[377607087,1754452266798,-467.77,0.0003589,14]
[377607088,1754452266809,-400.0,0.0003589,14]
[377607089,1754452266830,-400.0,0.0003589,14]
[377607090,1754452266840,-1950.8,0.0003589,14]
[377607091,1754452266849,-400.0,0.0003589,14]
[377607092,1754452266859,-1493.33,0.0003589,14]
[377607093,1754452266869,-400.0,0.0003589,14]
[377607094,1754452266878,-444.56,0.0003589,14]
[377607095,1754452266888,-751.05,0.0003589,14]
[377607096,1754452266898,-1133.54,0.0003589,14]
[377607097,1754452266907,-400.0,0.0003589,14]
[377607098,1754452266920,-2868.94,0.0003589,14]
[377607099,1754452266930,-400.0,0.0003589,14]
[377607100,1754452266940,-931.33,0.0003589,14]
[377607101,1754452266950,-693.52,0.0003589,14]
[377607102,1754452266962,-400.0,0.0003589,14]
[377607103,1754452266972,-321.36834531,0.0003589,14]
[377607104,1754452266982,-403.18,0.0003589,14]
[377607105,1754452266994,-1356.96,0.0003589,14]
[377607106,1754452267004,-464.67,0.0003589,14]
[377607107,1754452267014,-400.0,0.0003589,14]
[377607108,1754452267024,-1184.41,0.0003589,14]
[377607109,1754452267034,-1020.93,0.0003589,14]
[377607110,1754452267044,-400.0,0.0003589,14]
[377607111,1754452267054,-399.44533316,0.0003589,14]
[377607112,1754452267063,-491.65,0.0003589,14]
[377607113,1754452267074,-895.17,0.0003589,14]
[377607114,1754452267083,-1276.98,0.0003589,14]
[377607115,1754452267093,-400.0,0.0003589,14]
[377607116,1754452267103,-400.0,0.0003589,14]
[377607117,1754452267112,-860.0,0.0003589,14]
[377607118,1754452267122,-400.0,0.0003589,14]
[377607119,1754452267131,-1934.26,0.0003589,14]
[377607120,1754452267141,-892.54,0.0003589,14]
[377607121,1754452267150,-918.87,0.0003589,14]
[377607122,1754452267160,-1038.89,0.0003589,14]
[377607123,1754452267170,-400.0,0.0003589,14]
[377607124,1754452267181,-400.0,0.0003589,14]
[377607125,1754452267190,-569.06,0.0003589,14]
[377607126,1754452267200,-943.24,0.0003589,14]
[377607127,1754452267209,-400.0,0.0003589,14]
[377607128,1754452267219,-668.6,0.0003589,14]
[377607129,1754452267229,-400.0,0.0003589,14]
[377607130,1754452267238,-400.0,0.0003589,14]
[377607131,1754452267249,-1404.0,0.0003589,14]
[377607132,1754452267259,-1524.89,0.0003589,14]
[377607133,1754452267269,-400.0,0.0003589,14]
[377607134,1754452267279,-169.01669397,0.0003589,14]
[377607135,1754452267289,-1065.58,0.0003589,14]
[377607136,1754452267299,-883.06,0.0003589,14]
[377607137,1754452267308,-400.0,0.0003589,14]
[377607138,1754452267320,-703.63,0.0003589,14]
[377607139,1754452267330,-1851.15,0.0003589,14]
[377607140,1754452267340,-436.46,0.0003589,14]
[377607141,1754452267351,-454.29,0.0003589,14]
[377607142,1754452267361,-400.0,0.0003589,14]
[377607143,1754452267370,-400.0,0.0003589,14]
[377607144,1754452267380,-400.57290119,0.0003589,14]
[377607145,1754452267389,-400.0,0.0003589,14]
[377607146,1754452267400,-400.0,0.0003589,14]
[377607147,1754452267409,-2328.36,0.0003589,14]
[377607148,1754452267419,-477.38,0.0003589,14]
[377607149,1754452267430,-400.0,0.0003589,14]
[377607150,1754452267440,-616.26,0.0003589,14]
[377607151,1754452267450,-400.0,0.0003589,14]
[377607152,1754452267460,-400.0,0.0003589,14]
[377607153,1754452267470,-988.01,0.0003589,14]
[377607154,1754452267480,-400.0,0.0003589,14]
[377607155,1754452267490,-924.25,0.0003589,14]
[377607156,1754452267499,-503.12,0.0003589,14]
[377607157,1754452267509,-400.0,0.0003589,14]
[377607158,1754452267520,-577.92,0.0003589,14]
[377607159,1754452267530,-400.0,0.0003589,14]
[377607160,1754452267540,-1045.56,0.0003589,14]
[377607161,1754452267550,-400.0,0.0003589,14]
[377607162,1754452267559,-953.35,0.0003589,14]
[377607163,1754452267569,-1120.83,0.0003589,14]
[377607164,1754452267579,-400.0,0.0003589,14]
[377607165,1754452267589,-791.78,0.0003589,14]
[377607166,1754452267934,-555.83,0.0003589,14]
[377607167,1754452267944,-779.08,0.0003589,14]
[377607168,1754452267955,-1203.96,0.0003589,14]
[377607169,1754452267966,-287.86,0.0003589,14]
[377607170,1754452267976,-400.0,0.0003589,14]
[377607171,1754452267986,-678.08,0.0003589,14]
[377607172,1754452267996,-702.01,0.0003589,14]
[377607173,1754452268007,-1713.48,0.0003589,14]
[377607174,1754452268018,-529.34,0.0003589,14]
[377607175,1754452268027,-1343.0,0.0003589,14]
[377607176,1754452268036,-1201.21,0.0003589,14]
[377607177,1754452268045,-1491.3,0.0003589,14]
[377607178,1754452268055,-400.0,0.0003589,14]
[377607179,1754452268064,-779.18,0.0003589,14]
[377607180,1754452268073,-400.0,0.0003589,14]
[377607181,1754452268082,-400.0,0.0003589,14]
[377607182,1754452268092,-1668.56,0.0003589,14]
[377607183,1754452268104,-951.99,0.0003589,14]
[377607184,1754452268114,-400.0,0.0003589,14]
[377607185,1754452268124,-1394.34,0.0003589,14]
[377607186,1754452268133,-400.0,0.0003589,14]
[377607187,1754452268143,-400.0,0.0003589,2]
[377607188,1754452268152,-1944.84,0.0003589,14]
[377607189,1754452268164,-400.0,0.0003589,14]
[377607190,1754452268173,-722.6,0.0003589,14]
[377607191,1754452268184,-508.25,0.0003589,14]
[377607192,1754452268193,-400.0,0.0003589,14]
[377607193,1754452268205,-716.0,0.0003589,2]
[377607194,1754452268214,-2244.38,0.0003589,14]
[377607195,1754452268225,-3216.47,0.0003589,14]
[377607196,1754452268234,-1023.56,0.0003589,14]
[377607197,1754452268244,-904.45,0.0003589,14]
[377607198,1754452268254,-1768.79,0.0003589,14]
[377607199,1754452268264,-963.96,0.0003589,14]
[377607200,1754452268273,-400.0,0.0003589,2]
[377607201,1754452268283,-500.86,0.0003589,14]
[377607202,1754452268292,-807.3,0.0003589,14]
[377607203,1754452268302,-400.0,0.0003589,14]
[377607204,1754452268312,-1074.9,0.0003589,14]
[377607205,1754452268321,-604.69,0.0003589,14]
[377607206,1754452268331,-1755.92,0.0003589,14]
[377607207,1754452268341,-764.33,0.0003589,14]
[377607208,1754452268351,-400.0,0.0003589,14]
[377607209,1754452268362,-185.82,0.0003589,14]
[377607210,1754452268372,-1099.66,0.0003589,14]
[377607211,1754452268382,-400.0,0.0003589,14]
[377607212,1754452268395,-786.52,0.0003589,14]
[377607213,1754452268404,-779.24,0.0003589,14]
[377607214,1754452268414,-1792.09,0.0003589,14]
[377607215,1754452268423,-3267.86,0.0003589,14]
[377607216,1754452268432,-400.0,0.0003589,14]
[377607217,1754452268441,-682.28,0.0003589,14]
[377607218,1754452268451,-400.0,0.0003589,14]
[377607219,1754452268460,-452.15,0.0003589,14]
[377607220,1754452268470,-2806.7,0.0003589,14]
[377607221,1754452268479,-400.0,0.0003589,14]
[377607222,1754452268489,-435.18,0.0003589,14]
[377607223,1754452268499,-1813.63,0.0003589,14]
[377607224,1754452268509,-400.0,0.0003589,14]
[377607225,1754452268520,-1885.11,0.0003589,14]
[377607226,1754452268530,-400.0,0.0003589,14]
[377607227,1754452268539,-1979.01,0.0003589,14]
[377607228,1754452268549,-400.0,0.0003589,14]
[377607229,1754452268558,-400.0,0.0003589,14]
[377607230,1754452268568,-2992.32,0.0003589,14]
[377607231,1754452268578,-400.0,0.0003589,14]
[377607232,1754452268587,-1653.96,0.0003589,14]
[377607233,1754452268602,-400.0,0.0003589,14]
[377607234,1754452268619,-400.0,0.0003589,14]
[377607235,1754452268628,-11938.32,0.0003589,14]
[377607236,1754452268638,-1321.14,0.0003589,14]
[377607237,1754452268647,-400.0,0.0003589,14]
[377607238,1754452268657,-244.147265,0.0003589,7]
[377607239,1754452268666,-551.67,0.0003589,14]
[377607240,1754452268675,-1415.62,0.0003589,14]
[377607241,1754452268685,-400.0,0.0003589,14]
[377607242,1754452268694,-400.0,0.0003589,14]
[377607243,1754452268704,-1126.75,0.0003589,14]
[377607244,1754452268713,-2345.65,0.0003589,14]
[377607245,1754452268723,-624.6,0.0003589,14]
[377607246,1754452268732,-571.7,0.0003589,14]
[377607247,1754452268742,-976.53,0.0003589,14]
[377607248,1754452268752,-2096.52,0.0003589,14]
[377607249,1754452268762,-975.85,0.0003589,14]
[377607250,1754452268772,-400.0,0.0003589,14]
[377607251,1754452268782,-1342.52,0.0003589,14]
[377607252,1754452268792,-400.0,0.0003589,14]
[377607253,1754452268802,-400.0,0.0003589,14]
[377607254,1754452268811,-656.23,0.0003589,14]
[377607255,1754452268822,-423.06,0.0003589,14]
[377607256,1754452268831,-400.0,0.0003589,14]
[377607257,1754452268841,-400.0,0.0003589,14]
[377607258,1754452268851,-400.0,0.0003589,14]
[377607259,1754452268860,-400.0,0.0003589,14]
[377607260,1754452268870,-676.95,0.0003589,14]
[377607261,1754452268879,-400.0,0.0003589,14]
[377607262,1754452268889,-400.0,0.0003589,14]
[377607263,1754452268899,-1968.76,0.0003589,14]
[377607264,1754452268908,-1549.63,0.0003589,14]
[377607265,1754452268920,-1408.63,0.0003589,14]
[377607266,1754452268929,-400.0,0.0003589,14]
[377607267,1754452268939,-1053.15,0.0003589,14]
[377607268,1754452268948,-400.0,0.0003589,14]
[377607269,1754452268958,-1789.68,0.0003589,14]
[377607270,1754452268968,-962.0,0.0003589,14]
[377607271,1754452268978,-401.05794948,0.0003589,14]
[377607272,1754452268987,-1532.69,0.0003589,14]
[377607273,1754452268998,-2180.35,0.0003589,14]
[377607274,1754452269009,-1192.67,0.0003589,14]
[377607275,1754452269020,-400.0,0.0003589,14]
[377607276,1754452269030,-2714.38,0.0003589,14]
[377607277,1754452269040,-424.29,0.0003589,14]
[377607278,1754452269050,-400.0,0.0003589,14]
[377607279,1754452269061,-400.0,0.0003589,14]
[377607280,1754452269070,-1658.74,0.0003589,14]
[377607281,1754452269080,-400.0,0.0003589,14]
[377607282,1754452269089,-400.0,0.0003589,14]
[377607283,1754452269100,-1432.79,0.0003589,14]
[377607284,1754452269109,-1240.11,0.0003589,14]
[377607285,1754452269119,-400.0,0.0003589,14]
[377607286,1754452269129,-560.5,0.0003589,14]
[377607287,1754452269138,-2779.73,0.0003589,14]
[377607288,1754452269147,-485.22,0.0003589,14]
[377607289,1754452269158,-1874.53,0.0003589,14]
[377607290,1754452269168,-890.84,0.0003589,14]
[377607291,1754452269178,-400.0,0.0003589,14]
[377607292,1754452269188,-400.0,0.0003589,14]
[377607293,1754452269198,-1919.57,0.0003589,14]
[377607294,1754452269208,-400.52984215,0.0003589,14]
[377607295,1754452269217,-1302.51,0.0003589,14]
[377607296,1754452269227,-400.0,0.0003589,14]
[377607297,1754452269236,-2951.29,0.0003589,14]
[377607298,1754452269245,-899.55,0.0003589,14]
[377607299,1754452269257,-400.0,0.0003589,14]
[377607300,1754452269267,-659.6,0.0003589,14]
[377607301,1754452269277,-1664.87,0.0003589,14]
[377607302,1754452269286,-400.0,0.0003589,14]
[377607303,1754452269295,-1999.11,0.0003589,14]
[377607304,1754452269305,-400.0,0.0003589,14]
[377607305,1754452269315,-1269.17,0.0003589,14]
[377607306,1754452269326,-400.0,0.0003589,14]
[377607307,1754452269335,-587.45,0.0003589,14]
[377607308,1754452269345,-1925.34,0.0003589,14]
[377607309,1754452269356,-973.9,0.0003589,14]
[377607310,1754452269369,-835.91,0.0003589,14]
[377607311,1754452269379,-400.0,0.0003589,14]
[377607312,1754452269389,-300.0,0.0003589,14]
[377607313,1754452269398,-637.55,0.0003589,14]
[377607314,1754452269407,-400.0,0.0003589,14]
[377607315,1754452269416,-400.0,0.0003589,14]
[377607316,1754452269427,-1758.62,0.0003589,14]
[377607317,1754452269437,-400.0,0.0003589,14]
[377607318,1754452269446,-511.24,0.0003589,14]
[377607319,1754452269456,-1942.27,0.0003589,14]
[377607320,1754452269465,-400.0,0.0003589,14]
[377607321,1754452269474,-279.05337732,0.0003589,14]
[377607322,1754452269484,-400.0,0.0003589,14]
[377607323,1754452269494,-400.0,0.0003589,14]
[377607324,1754452269503,-630.77,0.0003589,14]
[377607325,1754452269515,-542.36,0.0003589,14]
[377607326,1754452269524,-418.92,0.0003589,14]
[377607327,1754452269534,-500.0,0.0003589,10]
[377607328,1754452269544,-1177.1,0.0003589,14]
[377607329,1754452269554,-1781.4,0.0003589,14]
[377607330,1754452269564,-400.0,0.0003589,14]
[377607331,1754452269575,-477.26,0.0003589,14]
[377607332,1754452269587,-1215.06,0.0003589,14]
[377607333,1754452269598,-3133.38,0.0003589,14]
[377607334,1754452269608,-400.0,0.0003589,14]
[377607335,1754452269618,-3885.86,0.0003589,14]
[377607336,1754452269627,-641.35,0.0003589,14]
[377607337,1754452269636,-400.0,0.0003589,14]
[377607338,1754452269645,-400.0,0.0003589,14]
[377607339,1754452269654,-405.26,0.0003589,14]
[377607340,1754452269663,-1936.96,0.0003589,14]
[377607341,1754452269672,-769.21,0.0003589,14]
[377607342,1754452269681,-400.0,0.0003589,14]
[377607343,1754452269691,-500.0,0.0003589,31]
[377607344,1754452269700,-400.0,0.0003589,14]
[377607345,1754452269710,-2278.89,0.0003589,14]
[377607346,1754452269720,-840.82,0.0003589,14]
[377607347,1754452269730,-1893.0,0.0003589,14]
[377607348,1754452269740,-400.0,0.0003589,14]
[377607349,1754452269749,-2640.31,0.0003589,14]
[377607350,1754452269758,-1378.56,0.0003589,14]
[377607351,1754452269768,-1318.4,0.0003589,14]
[377607352,1754452269778,-3266.12,0.0003589,14]
[377607353,1754452269788,-400.0,0.0003589,14]
[377607354,1754452269797,-627.83,0.0003589,14]
[377607355,1754452269807,-400.0,0.0003589,14]
[377607356,1754452269817,-400.0,0.0003589,14]
[377607357,1754452269826,-1879.05,0.0003589,14]
[377607358,1754452269835,-151.0,0.0003589,7]
[377607359,1754452269844,-400.0,0.0003589,14]
[377607360,1754452269854,-400.0,0.0003589,14]
[377607361,1754452269863,-995.41,0.0003589,14]
[377607362,1754452269873,-1443.17,0.0003589,14]
[377607363,1754452269882,-537.49,0.0003589,14]
[377607364,1754452269892,-400.0,0.0003589,14]
[377607365,1754452269902,-406.28855887,0.0003589,14]
[377607366,1754452269911,-400.0,0.0003589,14]
[377607367,1754452269921,-400.0,0.0003589,14]
[377607368,1754452269933,-400.0,0.0003589,14]
[377607369,1754452269942,-1426.95,0.0003589,14]
[377607370,1754452269952,-1069.91,0.0003589,14]
[377607371,1754452269961,-400.0,0.0003589,14]
[377607372,1754452269971,-400.0,0.0003589,14]
[377607373,1754452269980,-3257.96,0.0003589,14]
[377607374,1754452269989,-400.0,0.0003589,14]
[377607375,1754452269999,-1813.83,0.0003589,14]
[377607376,1754452270012,-400.0,0.0003589,14]
[377607377,1754452270025,-730.73,0.0003589,14]
[377607378,1754452270034,-1924.73,0.0003589,14]
[377607379,1754452270043,-400.0,0.0003589,14]
[377607380,1754452270052,-426.91767596,0.0003589,14]
[377607381,1754452270062,-400.0,0.0003589,14]
[377607382,1754452270072,-400.0,0.0003589,14]
[377607383,1754452270083,-458.4,0.0003589,14]
[377607384,1754452270092,-400.0,0.0003589,14]
[377607385,1754452270105,-1943.12,0.0003589,14]
[377607386,1754452270115,-181.4670699,0.0003589,14]
[377607387,1754452270125,-721.55,0.0003589,14]
[377607388,1754452270134,-2030.56,0.0003589,14]
[377607389,1754452270143,-493.75,0.0003589,14]
[377607390,1754452270152,-1644.2,0.0003589,14]
[377607391,1754452270162,-400.0,0.0003589,14]
[377607392,1754452270171,-1698.85,0.0003589,14]
[377607393,1754452270180,-249.34989872,0.0003589,14]
[377607394,1754452270190,-565.6,0.0003589,14]
[377607395,1754452270199,-2450.82,0.0003589,14]
[377607396,1754452270209,-488.71,0.0003589,14]
[377607397,1754452270220,-400.0,0.0003589,14]
[377607398,1754452270230,-2172.81,0.0003589,14]
[377607399,1754452270242,-1920.94,0.0003589,14]
[377607400,1754452270251,-2356.84,0.0003589,14]
[377607401,1754452270262,-400.0,0.0003589,14]
[377607402,1754452270373,-400.0,0.0003589,14]
[377607403,1754452270382,-151.0,0.0003589,7]
[377607404,1754452270392,-400.0,0.0003589,14]
[377607405,1754452270401,-1270.04,0.0003589,14]
[377607406,1754452270410,-400.0,0.0003589,14]
[377607407,1754452270419,-1889.5,0.0003589,14]
[377607408,1754452270429,-400.0,0.0003589,14]
[377607409,1754452270438,-1903.15,0.0003589,14]
[377607410,1754452270447,-791.48,0.0003589,14]
[377607411,1754452270457,-618.89,0.0003589,14]
[377607412,1754452270466,-151.0,0.0003589,7]
[377607413,1754452270476,-1255.89,0.0003589,14]
[377607414,1754452270485,-400.0,0.0003589,14]
[377607415,1754452270494,-1457.05,0.0003589,14]
[377607416,1754452270503,-701.14,0.0003589,14]
[377607417,1754452270512,-151.0,0.0003589,7]
[377607418,1754452270521,-400.0,0.0003589,14]
[377607419,1754452270530,-400.0,0.0003589,14]
[377607420,1754452270539,-465.02,0.0003589,14]
[377607421,1754452270549,-1076.4,0.0003589,14]
[377607422,1754452270558,-2421.29,0.0003589,14]
[377607423,1754452270567,-1477.2,0.0003589,14]
[377607424,1754452270576,-400.0,0.0003589,14]
[377607425,1754452270584,-1511.38,0.0003589,14]
[377607426,1754452270593,-1045.82,0.0003589,14]
[377607427,1754452270603,-400.0,0.0003589,14]
[377607428,1754452270612,-492.88,0.0003589,14]
[377607429,1754452270622,-1231.8,0.0003589,14]
[377607430,1754452270631,-2080.66,0.0003589,14]
[377607431,1754452270640,-400.0,0.0003589,14]
[377607432,1754452270649,-1687.25,0.0003589,14]
[377607433,1754452270658,-403.12211256,0.0003589,14]
[377607434,1754452270667,-400.0,0.0003589,14]
[377607435,1754452270676,-400.0,0.0003589,14]
[377607436,1754452270685,-1578.62,0.0003589,14]
[377607437,1754452270694,-2107.14,0.0003589,14]
[377607438,1754452270703,-400.0,0.0003589,14]
[377607439,1754452270712,-1322.94,0.0003589,14]
[377607440,1754452270722,-949.83,0.0003589,14]
[377607441,1754452270731,-400.0,0.0003589,14]
[377607442,1754452270740,-751.55,0.0003589,14]
[377607443,1754452270749,-400.0,0.0003589,14]
[377607444,1754452270758,-151.0,0.0003589,7]
[377607445,1754452270767,-400.0,0.0003589,14]
[377607446,1754452270776,-400.0,0.0003589,14]
[377607447,1754452270786,-984.84,0.0003589,14]
[377607448,1754452270795,-1745.18,0.0003589,14]
[377607449,1754452270804,-400.0,0.0003589,14]
[377607450,1754452270813,-591.2,0.0003589,14]
[377607451,1754452270822,-1279.93,0.0003589,14]
[377607452,1754452270832,-2197.65,0.0003589,14]
[377607453,1754452270841,-400.0,0.0003589,14]
[377607454,1754452270851,-566.92,0.0003589,14]
[377607455,1754452270860,-400.0,0.0003589,14]
[377607456,1754452270869,-400.0,0.0003589,14]
[377607457,1754452270879,-3459.7,0.0003589,14]
[377607458,1754452270888,-797.33,0.0003589,14]
[377607459,1754452270897,-1144.49,0.0003589,14]
[377607460,1754452270907,-400.0,0.0003589,14]
[377607461,1754452270918,-1266.18,0.0003589,14]
[377607462,1754452270928,-400.0,0.0003589,14]
[377607463,1754452270938,-400.0,0.0003589,14]
[377607464,1754452270947,-400.0,0.0003589,14]
[377607465,1754452270956,-400.0,0.0003589,14]
[377607466,1754452270966,-400.0,0.0003589,14]
[377607467,1754452270975,-466.41,0.0003589,14]